bitfinex-derivatives/quotes_SOLF0:USTF0_20250613
["timestamp","ask_amount","ask_price","bid_price","bid_amount"]
[1749790843924,5.03094085,144.16,144.1,5.03094085]
[1749790844119,6.9335,144.14,144.11,6.9346]
[1749790844321,0.04987106,144.14,144.11,0.04620384]
[1749790846227,2.3959,144.2,144.11,0.04620384]
[1749790846228,2.3959,144.2,144.13,5.03094085]
[1749790846615,7.42684085,144.2,144.13,5.03094085]
[1749790847323,0.05253387,144.18,144.15,0.04975662]
[1749790849328,5.03094085,144.16,144.09,36.12]
[1749790849526,5.03094085,144.16,144.09,41.15094085]
[1749790849932,5.03094085,144.12,144.06,36.12]
[1749790850321,36.12,144.13,144.06,41.15094085]
[1749790850520,0.04787497,144.1,144.08,0.04631828]
[1749790852633,5.03094085,144.09,144.08,0.04631828]
[1749790853527,5.03094085,144.09,144.03,36.12]
[1749790854432,0.04495224,144.07,144.03,36.12]
[1749790855629,0.04495224,144.07,144.04,5.03094085]
[1749790857127,0.04495224,144.07,144.03,41.15094085]
[1749790857635,0.04495224,144.07,144.02,36.12]
[1749790860539,5.07589309,144.07,144.02,36.12]
[1749790861629,0.04495224,144.07,144.02,36.12]
[1749790862137,5.07589309,144.07,143.98,36.14]
[1749790862337,0.04750456,144.04,143.98,41.17094085]
[1749790866234,0.04750456,144.04,143.98,36.14]
[1749790866442,5.03094085,144.03,143.98,36.14]
[1749790867645,0.04750456,144.04,143.98,36.14]
[1749790869645,0.04750456,144.04,143.99,5.05838594]
[1749790869844,0.04750456,144.04,143.98,36.14]
[1749790870048,0.04750456,144.04,144.0,5.05838594]
[1749790870845,0.04750456,144.04,143.98,36.14]
[1749790870846,0.04750456,144.04,143.99,5.05838594]
[1749790871739,5.1058905,144.04,143.98,36.14]
[1749790873140,5.05838594,144.02,143.96,5.05838594]
[1749790873343,0.04842533,144.0,143.96,5.05838594]
[1749790875046,0.04842533,144.0,143.95,38.373]
[1749790875241,0.04842533,144.0,143.92,8.56204497]
[1749790875543,0.05171585,143.97,143.91,43.40838594]
[1749790876537,0.05171585,143.97,143.95,5.05838594]
[1749790880058,0.05171585,143.97,143.93,5.06208392]
[1749790881056,0.05171585,143.97,143.95,5.06208392]
[1749790881657,0.05171585,143.97,143.96,5.06208392]
[1749790883061,438.1824,144.05,143.99,5.06208392]
[1749790884060,0.04465948,144.03,144.01,0.04756946]
[1749790893673,5.1067434,144.03,144.01,0.04756946]
[1749790894177,5.1067434,144.03,143.95,36.12]
[1749790894486,5.06208392,144.0,143.94,5.06208392]
[1749790894780,41.14208392,144.0,143.94,5.06208392]
[1749790895282,0.04746839,143.98,143.94,5.06208392]
[1749790896774,0.04746839,143.98,143.92,38.3522]
[1749790897074,5.10955231,143.98,143.92,36.08]
[1749790897277,5.10955231,143.98,143.91,5.06208392]
[1749790897486,0.04746839,143.98,143.93,5.06208392]
[1749790897777,0.04378379,143.97,143.93,5.06208392]
[1749790898175,0.04378379,143.97,143.91,5.06208392]
[1749790898375,0.04378379,143.97,143.92,6.9432]
[1749790898577,0.04378379,143.97,143.91,5.06208392]
[1749790898776,0.04378379,143.97,143.94,6.9421]
[1749790899279,0.04378379,143.97,143.93,5.06208392]
[1749790899783,36.1,143.96,143.89,36.1]
[1749790899978,0.05223009,143.94,143.9,6.9442]
[1749790900177,0.05223009,143.94,143.89,36.1]
[1749790900479,0.05223009,143.94,143.82,49.39957244]
[1749790900779,0.04409613,143.89,143.77,8.56467244]
[1749790900969,0.04409613,143.89,143.7,31.03754489]
[1749790900970,5.07138388,143.83,143.76,5.07138388]
[1749790901173,0.05037616,143.81,143.77,5.07138388]
[1749790901586,0.05037616,143.81,143.79,6.9495]
[1749790901773,0.05037616,143.81,143.79,5.07138388]
[1749790901978,43.54507879,143.87,143.8,5.07107879]
[1749790902178,43.54507879,143.87,143.77,36.1]
[1749790902379,38.474,143.87,143.8,5.07107879]
[1749790902581,43.54507879,143.87,143.82,6.9483]
[1749790902976,43.54507879,143.87,143.8,5.07107879]
[1749790903181,0.05219219,143.85,143.82,6.99890362]
[1749790903478,0.05219219,143.85,143.82,0.05100362]
[1749790903882,0.05219219,143.85,143.83,6.9474]
[1749790904279,0.05219219,143.85,143.82,5.12208241]
[1749790904586,0.05219219,143.85,143.84,12.01847879]
[1749790904781,0.05219219,143.85,143.84,6.9474]
[1749790904980,0.05219219,143.85,143.84,12.01847879]
[1749790905783,0.05219219,143.85,143.84,5.07107879]
[1749790905981,0.05219219,143.85,143.83,6.9478]
[1749790906375,0.05219219,143.85,143.82,6.99920362]
[1749790906983,0.05219219,143.85,143.83,6.9478]
[1749790908693,0.05219219,143.85,143.84,6.9474]
[1749790911294,0.05219219,143.85,143.83,6.9478]
[1749790911489,0.05219219,143.85,143.82,0.05100362]
[1749790911892,0.05219219,143.85,143.82,6.99900362]
[1749790912089,0.05219219,143.85,143.82,0.05100362]
[1749790912890,0.05219219,143.85,143.83,6.9478]
[1749790913094,0.05219219,143.85,143.82,0.05100362]
[1749790914800,0.05219219,143.85,143.84,6.9474]
[1749790916296,0.05219219,143.85,143.83,6.9478]
[1749790917889,5.07423464,143.84,143.7,8.53167554]
[1749790918095,5.07683692,143.8,143.72,5.07683692]
[1749790918292,7.25163692,143.83,143.73,38.5219]
[1749790918593,2.1748,143.83,143.77,5.07683692]
[1749790918900,0.04646819,143.81,143.79,6.9494]
[1749790920496,0.04646819,143.81,143.78,6.9501]
[1749790921498,0.04646819,143.81,143.74,41.19683692]
[1749790921702,0.04646819,143.81,143.76,5.07683692]
[1749790922091,0.04646819,143.81,143.78,6.95]
[1749790922491,0.04646819,143.81,143.76,5.07683692]
[1749790923302,0.04646819,143.81,143.79,6.9497]
[1749790923897,0.04646819,143.81,143.77,6.9507]
[1749790924500,0.04646819,143.81,143.78,6.9502]
[1749790924997,0.04646819,143.81,143.74,41.19683692]
[1749790925596,0.04646819,143.81,143.77,6.9507]
[1749790926199,0.04646819,143.81,143.7,5.07792916]
[1749790926200,5.07792916,143.78,143.7,5.07792916]
[1749790926395,0.04763854,143.75,143.69,2.3768]
[1749790926602,0.04763854,143.75,143.69,7.45472916]
[1749790926804,0.04763854,143.75,143.72,6.9529]
[1749790927000,0.04763854,143.75,143.69,7.45472916]
[1749790927395,0.04763854,143.75,143.73,6.9526]
[1749790927802,0.04763854,143.75,143.69,2.3768]
[1749790928106,5.1255677,143.75,143.69,2.3768]
[1749790928309,12.0775677,143.75,143.71,6.9535]
[1749790928497,5.1255677,143.75,143.71,6.9535]
[1749790928808,5.1255677,143.75,143.69,2.3768]
[1749790929001,5.1255677,143.75,143.72,6.9531]
[1749790930005,0.04763854,143.75,143.72,6.9531]
[1749790931104,0.04763854,143.75,143.73,6.9527]
[1749790931502,0.04763854,143.75,143.69,7.45472916]
[1749790932101,0.04763854,143.75,143.69,2.3768]
[1749790932404,0.04763854,143.75,143.72,6.9529]
[1749790932994,0.04763854,143.75,143.69,7.45472916]
[1749790933899,0.04763854,143.75,143.72,6.9529]
[1749790935307,0.04763854,143.75,143.73,6.9526]
[1749790939607,5.1255677,143.75,143.69,2.3768]
[1749790940204,5.1255677,143.75,143.71,6.9533]
[1749790940401,5.1255677,143.75,143.69,2.3768]
[1749790941110,0.04763854,143.75,143.69,2.3768]
[1749790941307,0.04763854,143.75,143.72,5.07792916]
[1749790941499,0.04763854,143.75,143.74,5.07792916]
[1749790941702,0.04763854,143.75,143.74,41.69792916]
[1749790941906,0.04763854,143.75,143.74,48.65012916]
[1749790944706,5.07792916,143.81,143.74,41.69792916]
[1749790945014,44.09932916,143.83,143.76,5.07792916]
[1749790945215,7.47932916,143.83,143.78,6.9502]
[1749790945511,7.47932916,143.83,143.78,43.5702]
[1749790945710,0.04530338,143.82,143.79,0.04458922]
[1749790947610,0.04530338,143.82,143.8,5.07792916]
[1749790948209,0.04530338,143.82,143.81,6.9488]
[1749790950117,2.3993,143.89,143.84,6.9471]
[1749790950317,2.3993,143.89,143.83,36.6]
[1749790950615,6.9455,143.88,143.83,43.5475]
[1749790951006,0.04410512,143.87,143.84,0.0448168]
[1749790951205,6.9465,143.86,143.84,0.0448168]
[1749790951513,5.12203428,143.87,143.84,0.0448168]
[1749790951810,12.06813428,143.87,143.84,0.0448168]
[1749790953315,6.9465,143.86,143.84,0.0448168]
[1749790953512,5.12203428,143.87,143.84,0.0448168]
[1749790954115,6.9469,143.86,143.84,0.0448168]
[1749790955315,6.9469,143.85,143.84,0.0448168]
[1749790956417,6.9465,143.86,143.84,0.0448168]
[1749790958505,6.99020512,143.87,143.84,0.0448168]
[1749790959022,0.04410512,143.87,143.84,0.0448168]
[1749790959216,6.99020512,143.87,143.84,6.9921168]
[1749790959423,0.04410512,143.87,143.84,5.12274596]
[1749790960215,0.04410512,143.87,143.84,0.0448168]
[1749790960922,6.9468,143.86,143.84,0.0448168]
[1749790964328,6.99020512,143.87,143.84,0.0448168]
[1749790965229,6.99020512,143.87,143.84,6.9921168]
[1749790965431,6.99020512,143.87,143.84,0.0448168]
[1749790967331,6.9465,143.86,143.84,0.0448168]
[1749790968233,6.9469,143.85,143.84,0.0448168]
[1749790968834,6.9466,143.86,143.84,0.0448168]
[1749790972638,6.9469,143.85,143.84,0.0448168]
[1749790973141,0.04410512,143.87,143.84,0.0448168]
[1749790973142,6.9467,143.86,143.84,0.0448168]
[1749790973537,5.07792916,143.86,143.84,0.0448168]
[1749790973842,5.07358317,143.84,143.77,36.68]
[1749790974042,5.07358317,143.84,143.79,6.9495]
[1749790974340,5.07358317,143.84,143.77,36.68]
[1749790974542,5.07358317,143.82,143.78,6.95]
[1749790974746,6.9491,143.81,143.79,0.0512359]
[1749790976436,6.9493,143.8,143.79,0.0512359]
[1749790977741,0.05143521,143.82,143.74,36.68]
[1749790977942,5.07358317,143.8,143.74,36.68]
[1749790978151,5.07358317,143.76,143.69,36.68]
[1749790978444,5.07358317,143.76,143.69,41.75358317]
[1749790978646,5.07358317,143.78,143.72,6.9531]
[1749790978849,0.04847779,143.76,143.71,5.07358317]
[1749790979044,0.04847779,143.76,143.71,5.07743804]
[1749790979045,6.99987779,143.76,143.71,5.07743804]
[1749790979241,0.04847779,143.76,143.73,5.07743804]
[1749790979447,0.04847779,143.76,143.73,41.75743804]
[1749790980350,0.04847779,143.76,143.74,6.9522]
[1749790982154,0.04847779,143.76,143.73,36.68]
[1749790982856,0.04847779,143.76,143.73,43.6326]
[1749790983455,6.99977779,143.76,143.73,43.6326]
[1749790984354,0.04847779,143.76,143.74,6.9522]
[1749790985350,0.04847779,143.76,143.73,41.75743804]
[1749790985351,0.04847779,143.76,143.75,12.02913804]
[1749790986153,0.04847779,143.76,143.75,5.07743804]
[1749790986757,0.04847779,143.76,143.75,12.02913804]
[1749790988553,2.2717,143.83,143.75,5.07743804]
[1749790988755,5.07743804,143.87,143.8,5.07743804]
[1749790989059,6.9468,143.85,143.8,5.07743804]
[1749790989260,6.9468,143.85,143.8,12.02643804]
[1749790989763,0.05300624,143.84,143.81,6.99553242]
[1749790990055,0.05300624,143.84,143.82,5.07743804]
[1749790990449,0.05300624,143.84,143.81,12.07287046]
[1749790990647,0.05300624,143.84,143.81,5.12427046]
[1749790991060,0.05300624,143.84,143.82,6.9483]
[1749790991455,0.05300624,143.84,143.81,12.07287046]
[1749790991655,0.05300624,143.84,143.81,5.12427046]
[1749790993262,0.05300624,143.84,143.81,12.07277046]
[1749790994060,0.05300624,143.84,143.82,6.9483]
[1749790994454,0.05300624,143.84,143.81,0.04683242]
[1749790994650,0.05300624,143.84,143.82,12.02573804]
[1749790994963,0.05300624,143.84,143.82,5.07743804]
[1749790995853,0.05300624,143.84,143.82,12.02573804]
[1749790996459,0.05300624,143.84,143.82,5.07743804]
[1749790997158,0.05300624,143.84,143.83,36.32]
[1749790997559,0.05300624,143.84,143.81,8.70270949]
[1749790997759,0.05300624,143.84,143.81,0.04683242]
[1749790998257,6.9481,143.83,143.81,0.04683242]
[1749790999061,7.00060624,143.84,143.81,0.04683242]
[1749790999566,0.05300624,143.84,143.81,0.04683242]
[1749790999961,0.05300624,143.84,143.81,6.99533242]
[1749791000261,7.00040624,143.84,143.81,6.99533242]
[1749791000564,0.05300624,143.84,143.82,6.9483]
[1749791000763,0.05300624,143.84,143.81,0.04683242]
[1749791000964,0.05300624,143.84,143.81,5.12427046]
[1749791002166,0.05300624,143.84,143.82,6.9481]
[1749791003470,0.05300624,143.84,143.81,5.12427046]
[1749791003471,7.00040624,143.84,143.81,6.99543242]
[1749791004169,6.9479,143.83,143.81,0.04683242]
[1749791004467,0.05300624,143.84,143.81,0.04683242]
[1749791004870,6.9481,143.83,143.81,0.04683242]
[1749791005866,0.05300624,143.84,143.82,5.07743804]
[1749791006364,0.05300624,143.84,143.83,6.9478]
[1749791010767,6.47894197,143.86,143.85,6.9469]
[1749791011071,6.47894197,143.86,143.85,12.02433804]
[1749791012372,0.04513082,143.87,143.86,6.9464]
[1749791013571,2.2219,143.94,143.85,10.15487608]
[1749791013775,2.2219,143.94,143.9,5.07743804]
[1749791014072,40.9092,143.96,143.9,41.39743804]
[1749791014073,4.5892,143.96,143.9,41.39743804]
[1749791014472,0.05236617,143.94,143.92,0.0523226]
[1749791014667,0.05236617,143.94,143.92,5.12976064]
[1749791015075,0.05236617,143.94,143.93,6.943]
[1749791017878,4.7164,144.01,143.96,6.9411]
[1749791018171,4.7164,144.01,143.96,12.01853804]
[1749791018375,45.3207,144.02,143.96,5.07743804]
[1749791018574,9.1607,144.02,143.96,5.07743804]
[1749791019071,9.1607,144.02,143.95,36.14]
[1749791019072,0.04702988,144.0,143.98,0.04508783]
[1749791019675,6.98682988,144.0,143.98,0.04508783]
[1749791020075,0.04702988,144.0,143.98,0.04508783]
[1749791020276,0.04702988,144.0,143.95,36.14]
[1749791020880,5.12446792,144.0,143.95,36.14]
[1749791021282,5.12446792,144.0,143.96,0.04945261]
[1749791021778,6.9404,143.99,143.96,0.04945261]
[1749791022182,0.04702988,144.0,143.96,0.04945261]
[1749791022780,6.9402,143.99,143.96,0.04945261]
[1749791023785,6.9402,143.99,143.96,6.99095261]
[1749791023989,6.9406,143.98,143.96,0.04945261]
[1749791024878,6.9404,143.99,143.96,0.04945261]
[1749791025181,0.04702988,144.0,143.96,6.99075261]
[1749791025387,6.9404,143.99,143.96,6.99075261]
[1749791025779,0.04702988,144.0,143.96,6.99075261]
[1749791026084,6.9402,143.99,143.96,6.99075261]
[1749791026787,6.9406,143.98,143.96,0.04945261]
[1749791026983,0.04702988,144.0,143.96,0.04945261]
[1749791027482,6.9405,143.99,143.96,6.99065261]
[1749791027781,5.12446792,144.0,143.96,0.04945261]
[1749791027986,2.3551,143.99,143.95,36.14]
[1749791028283,6.9416,143.96,143.93,6.9427]
[1749791029085,6.99158036,143.96,143.93,6.98953126]
[1749791030282,0.04998036,143.96,143.94,5.07743804]
[1749791031277,0.04998036,143.96,143.95,6.942]
[1749791033882,0.04998036,143.96,143.94,6.9422]
[1749791034082,0.04998036,143.96,143.93,5.1242693]
[1749791034482,0.04998036,143.96,143.93,12.0672693]
[1749791036590,0.04998036,143.96,143.94,6.9424]
[1749791036787,0.04998036,143.96,143.95,5.07743804]
[1749791037386,0.04998036,143.96,143.95,12.01943804]
[1749791037590,0.04998036,143.96,143.93,0.04683126]
[1749791037785,6.99188036,143.96,143.93,0.04683126]
[1749791037989,0.04998036,143.96,143.93,0.04683126]
[1749791038185,2.43148036,143.96,143.93,0.04683126]
[1749791038891,6.9422,143.95,143.93,0.04683126]
[1749791040685,6.9422,143.95,143.93,6.98973126]
[1749791040989,6.9422,143.95,143.93,0.04683126]
[1749791042889,6.9422,143.95,143.93,6.98973126]
[1749791043086,6.9422,143.95,143.93,0.04683126]
[1749791044992,6.9425,143.94,143.93,0.04683126]
[1749791045889,6.9422,143.95,143.93,0.04683126]
[1749791046094,2.43148036,143.96,143.93,6.98963126]
[1749791046889,6.9422,143.95,143.93,0.04683126]
[1749791047395,7.5089184,143.96,143.93,0.04683126]
[1749791049294,6.9425,143.95,143.93,0.04683126]
[1749791049797,6.9425,143.94,143.93,0.04683126]
[1749791050999,2.43148036,143.96,143.93,0.04683126]
[1749791051699,6.9423,143.95,143.93,0.04683126]
[1749791056796,6.9423,143.95,143.93,6.98973126]
[1749791057102,6.9423,143.95,143.93,0.04683126]
[1749791057692,9.37318036,143.96,143.93,0.04683126]
[1749791058001,9.37318036,143.96,143.93,6.98953126]
[1749791059103,0.04998036,143.96,143.94,13.73676128]
[1749791059299,0.04998036,143.96,143.94,5.07743804]
[1749791060498,0.04998036,143.96,143.95,6.942]
[1749791066600,170.15251335,144.06,144.0,6.9396]
[1749791066905,2.69838284,144.05,144.01,5.07743804]
[1749791067105,170.15251335,144.06,144.01,5.07743804]
[1749791067308,134.03251335,144.06,144.01,5.07743804]
[1749791067503,0.04893325,144.05,144.03,5.07743804]
[1749791068204,0.04893325,144.05,144.04,6.9377]
[1749791069402,0.04893325,144.05,144.03,36.12]
[1749791069802,0.04893325,144.05,144.02,0.04684571]
[1749791070003,6.98633325,144.05,144.02,0.04684571]
[1749791070302,0.04893325,144.05,144.02,0.04684571]
[1749791070509,0.04893325,144.05,144.03,6.9379]
[1749791071210,0.04893325,144.05,144.02,6.98534571]
[1749791072611,0.04893325,144.05,144.02,0.04684571]
[1749791073310,5.12637129,144.05,144.02,0.04684571]
[1749791073505,6.9377,144.04,144.02,0.04684571]
[1749791073704,5.12637129,144.05,144.02,0.04684571]
[1749791073904,5.07743804,144.03,143.97,36.12]
[1749791074104,12.01593804,144.03,143.97,36.12]
[1749791074310,36.12,144.05,144.02,6.9383]
[1749791074512,11.482,144.06,144.02,6.9383]
[1749791074806,2.71743932,144.05,144.02,6.9383]
[1749791075110,0.04758374,144.05,144.03,0.05031929]
[1749791075710,6.98488374,144.05,144.03,0.05031929]
[1749791079209,6.9377,144.04,144.03,0.05031929]
[1749791080509,6.98488374,144.05,144.03,0.05031929]
[1749791080710,0.04758374,144.05,144.03,0.05031929]
[1749791081111,6.9377,144.04,144.03,0.05031929]
[1749791082402,0.04758374,144.05,144.03,0.05031929]
[1749791083413,6.98508374,144.05,144.03,0.05031929]
[1749791085119,6.9377,144.04,144.03,0.05031929]
[1749791086220,12.01513804,144.04,144.03,0.05031929]
[1749791086415,5.07743804,144.04,143.97,36.12]
[1749791086616,5.07743804,144.01,143.97,36.12]
[1749791086917,6.9397,144.0,143.97,43.0607]
[1749791087421,6.99112222,144.0,143.97,43.10697984]
[1749791087820,0.05142222,144.0,143.98,6.9405]
[1749791088318,6.99112222,144.0,143.97,43.10717984]
[1749791090425,6.99112222,144.0,143.98,6.9406]
[1749791093932,6.99112222,144.0,143.97,43.10717984]
[1749791098435,6.99112222,144.0,143.98,6.9406]
[1749791099135,0.05142222,144.0,143.98,6.9406]
[1749791099330,0.05142222,144.0,143.99,6.9401]
[1749791101739,0.05142222,144.0,143.99,13.39912994]
[1749791102326,0.05142222,144.0,143.98,6.45902994]
[1749791102531,0.05142222,144.0,143.97,42.62530978]
[1749791102927,5.07743804,143.99,143.97,6.50530978]
[1749791103128,5.07743804,143.99,143.97,0.04627984]
[1749791103438,6.9406,143.98,143.97,0.04627984]
[1749791104337,14.39613804,143.99,143.97,0.04627984]
[1749791104534,0.05142222,144.0,143.97,5.12371788]
[1749791104741,0.05142222,144.0,143.99,5.07743804]
[1749791104935,36.08,144.07,143.99,5.05684356]
[1749791105238,2.2498,144.08,144.04,5.05569995]
[1749791105441,9.186,144.08,144.04,11.99309995]
[1749791105638,2.2498,144.08,144.04,5.05569995]
[1749791105937,9.1857,144.08,144.05,6.98953071]
[1749791106145,0.04647532,144.07,144.05,0.05243071]
[1749791106642,0.04647532,144.07,144.06,6.9367]
[1749791108442,0.04647532,144.07,144.05,6.98943071]
[1749791108644,0.04647532,144.07,144.05,0.05243071]
[1749791109735,5.05569995,144.06,144.01,36.04]
[1749791109934,5.05569995,144.04,143.98,36.04]
[1749791110129,5.05569995,144.02,143.95,41.09569995]
[1749791110343,38.3839,144.05,143.95,41.09569995]
[1749791110344,5.05569995,144.0,143.95,36.04]
[1749791110542,6.9406,143.98,143.95,36.04]
[1749791110736,6.98863549,143.98,143.95,36.08665015]
[1749791110940,0.04803549,143.98,143.95,43.02835015]
[1749791111537,0.04803549,143.98,143.96,6.9415]
[1749791111743,0.04803549,143.98,143.95,41.1423501]
[1749791112538,0.04803549,143.98,143.95,48.0840501]
[1749791113945,0.04803549,143.98,143.95,41.1423501]
[1749791114140,6.98873549,143.98,143.95,41.1423501]
[1749791115041,6.98873549,143.98,143.95,48.0843501]
[1749791115540,0.04803549,143.98,143.95,48.0843501]
[1749791116636,0.04803549,143.98,143.95,43.02865015]
[1749791116841,0.04803549,143.98,143.95,48.0843501]
[1749791117443,0.04803549,143.98,143.95,41.1423501]
[1749791118951,0.04803549,143.98,143.95,48.0839501]
[1749791119651,0.04803549,143.98,143.96,6.9415]
[1749791120752,0.04803549,143.98,143.97,11.99669995]
[1749791121144,0.04803549,143.98,143.95,41.1423501]
[1749791121948,0.04803549,143.98,143.95,48.0842501]
[1749791123350,0.04803549,143.98,143.96,6.9414]
[1749791123949,0.04803549,143.98,143.97,6.941]
[1749791124352,0.04803549,143.98,143.97,11.99669995]
[1749791124547,0.04803549,143.98,143.97,5.05569995]
[1749791124747,0.04803549,143.98,143.96,11.99699995]
[1749791124952,0.04803549,143.98,143.96,5.05569995]
[1749791126255,0.04803549,143.98,143.97,6.941]
[1749791132855,2.3731,144.05,144.01,6.9389]
[1749791133658,2.3731,144.05,144.0,11.99509995]
[1749791133863,0.05247626,144.04,144.01,0.04650458]
[1749791134362,6.99017626,144.04,144.01,0.04650458]
[1749791134662,6.99017626,144.04,144.01,6.98560458]
[1749791134865,0.05247626,144.04,144.01,6.98560458]
[1749791136556,6.99017626,144.04,144.01,6.98560458]
[1749791136865,0.05247626,144.04,144.02,6.9386]
[1749791137362,0.05247626,144.04,144.01,6.98540458]
[1749791137959,6.99037626,144.04,144.01,6.98540458]
[1749791138259,5.05569995,144.02,143.96,8.61322023]
[1749791138467,6.9399,144.0,143.96,36.0]
[1749791138856,6.9399,144.0,143.97,6.9408]
[1749791139458,6.99026208,144.0,143.97,6.98839274]
[1749791139662,0.05036208,144.0,143.98,6.9405]
[1749791140863,6.98996208,144.0,143.98,6.9405]
[1749791141064,6.98996208,144.0,143.97,6.98839274]
[1749791144669,6.9402,143.99,143.97,6.98839274]
[1749791145261,6.99016208,144.0,143.97,6.98839274]
[1749791145561,0.05036208,144.0,143.98,6.9405]
[1749791146668,6.98996208,144.0,143.97,6.98839274]
[1749791150367,6.9402,143.99,143.97,0.04759274]
[1749791152271,6.99016208,144.0,143.97,6.98849274]
[1749791153275,0.05036208,144.0,143.98,6.9403]
[1749791154272,0.05036208,144.0,143.97,0.04759274]
[1749791154574,0.05036208,144.0,143.98,5.05569995]
[1749791154976,0.05036208,144.0,143.99,6.9401]
[1749791155977,0.05036208,144.0,143.98,11.99599995]
[1749791163577,0.05036208,144.0,143.99,6.9401]
[1749791163998,43.44879995,144.05,143.98,5.05569995]
[1749791163999,2.3731,144.05,143.98,13.66892018]
[1749791164282,4.6906,144.1,144.03,5.05569995]
[1749791164473,6.9306,144.1,144.07,5.05569995]
[1749791164673,4.5409,144.1,144.07,5.05569995]
[1749791164876,38.2258,144.14,144.09,5.05569995]
[1749791165082,0.04903179,144.13,144.1,0.0456673]
[1749791165279,0.04903179,144.13,144.11,5.05569995]
[1749791165682,0.04903179,144.13,144.11,11.98989995]
[1749791166884,0.04903179,144.13,144.11,5.05569995]
[1749791167681,0.04903179,144.13,144.1,5.10136725]
[1749791167980,6.98233179,144.13,144.1,5.10136725]
[1749791169181,6.9339,144.12,144.1,5.10136725]
[1749791170189,6.9343,144.11,144.1,0.0456673]
[1749791170387,5.05569995,144.11,144.04,35.98]
[1749791170576,5.05569995,144.11,143.98,9.34612023]
[1749791170577,6.9382,144.03,144.01,435.76]
[1749791170778,2.206,144.1,144.01,435.76]
[1749791170779,5.05569995,144.05,144.01,35.98]
[1749791171081,5.05569995,144.05,143.99,5.05569995]
[1749791171389,6.9396,144.0,143.97,41.01569995]
[1749791171581,0.04710384,144.0,143.97,41.06738426]
[1749791171791,6.9402,143.99,143.97,41.06738426]
[1749791173688,6.9406,143.98,143.97,36.01168431]
[1749791176785,6.9401,143.99,143.97,36.01168431]
[1749791179393,6.98690384,144.0,143.97,36.01168431]
[1749791179984,0.04710384,144.0,143.97,36.01168431]
[1749791180191,0.04710384,144.0,143.98,5.05569995]
[1749791181987,0.04710384,144.0,143.98,11.99609995]
[1749791183990,0.04710384,144.0,143.99,6.9401]
[1749791184293,0.04710384,144.0,143.98,5.05569995]
[1749791184682,0.04710384,144.0,143.98,11.99599995]
[1749791185487,0.04710384,144.0,143.98,5.05569995]
[1749791187095,0.04710384,144.0,143.98,11.99619995]
[1749791188098,0.04710384,144.0,143.99,6.9401]
[1749791188895,0.04710384,144.0,143.98,11.99609995]
[1749791189595,0.04710384,144.0,143.99,6.9401]
[1749791189793,0.04710384,144.0,143.98,5.05569995]
[1749791189995,0.04710384,144.0,143.97,36.01168431]
[1749791190599,0.04710384,144.0,143.98,6.9403]
[1749791191900,5.10280379,144.0,143.97,36.01168431]
[1749791192105,5.10280379,144.0,143.97,0.05168431]
[1749791192600,6.9404,143.99,143.97,0.05168431]
[1749791192999,0.04710384,144.0,143.98,6.9403]
[1749791194404,6.98670384,144.0,143.98,6.9403]
[1749791194612,6.98670384,144.0,143.97,6.99258431]
[1749791195000,6.9406,143.98,143.97,0.05168431]
[1749791196900,5.05569995,143.99,143.91,435.76]
[1749791197110,5.05569995,143.97,143.91,435.76]
[1749791197305,5.05569995,143.97,143.91,35.98]
[1749791197611,5.05569995,143.98,143.92,6.9431]
[1749791197813,5.05569995,143.98,143.92,5.05569995]
[1749791198016,0.04791763,143.96,143.92,5.05569995]
[1749791198313,0.04791763,143.96,143.93,6.9429]
[1749791198916,6.98941763,143.96,143.93,6.9429]
[1749791199317,6.98941763,143.96,143.94,6.9424]
[1749791199518,6.98941763,143.96,143.92,5.05569995]
[1749791199914,6.98941763,143.96,143.93,6.9428]
[1749791200513,0.04791763,143.96,143.92,5.05569995]
[1749791200715,5.10361758,143.96,143.88,35.96]
[1749791200918,0.04805932,143.93,143.88,35.96]
[1749791201119,5.05569995,143.92,143.88,35.96]
[1749791201322,5.05569995,143.92,143.85,35.96]
[1749791201623,6.9449,143.89,143.86,6.946]
[1749791202331,6.99661593,143.9,143.87,6.9457]
[1749791202615,0.05201593,143.9,143.87,5.05569995]
[1749791202819,0.05201593,143.9,143.89,12.00059995]
[1749791203414,0.05201593,143.9,143.88,6.9452]
[1749791203722,0.05201593,143.9,143.87,5.05569995]
[1749791203924,0.05201593,143.9,143.88,6.945]
[1749791204223,0.05201593,143.9,143.87,5.05569995]
[1749791204621,0.05201593,143.9,143.88,6.9453]
[1749791205619,0.05201593,143.9,143.89,6.9449]
[1749791205818,0.05201593,143.9,143.89,47.98059995]
[1749791206020,2.258,143.95,143.92,5.05569995]
[1749791206416,2.3876,143.97,143.94,6.9425]
[1749791206917,6.9418,143.96,143.94,0.04477068]